[Event "LJ Slovak Open 2022"]
[Site "Liptovsky Jan"]
[Date "2022.06.24"]
[Round "3.19"]
[White "Subjakova, Kristina"]
[Black "Borsos, Bogdan"]
[Result "0-1"]
[ECO "C45"]
[WhiteElo "1623"]
[BlackElo "2200"]
[Annotator "RC"]
[PlyCount "40"]
[EventDate "2022.06.23"]
[EventType "swiss"]
[EventCountry "SVK"]
[SourceTitle "playchess.com"]
[Source "ChessBase"]
[SourceQuality "1"]
[TimeControl "3600+30"]

1. e4 {[%emt 0:00:04]} e5 {[%emt 0:00:05]} 2. Nf3 {[%emt 0:00:04]} Nc6 {[%emt 0:00:04]} 3. d4 {[%emt 0:00:07]} exd4 {[%emt 0:00:07]} 4. Nxd4 {[%emt 0:00:06]} Nf6 {[%emt 0:00:05]} 5. Nxc6 {[%emt 0:00:07]} bxc6 {[%emt 0:00:07]} 6. e5 {[%emt 0:00:05]} Qe7 {[%emt 0:00:05]} 7. Qe2 {[%emt 0:00:08]} Nd5 {[%emt 0:00:07]} 8. c4 {[%emt 0:00:09]} Nb6 {[%emt 0:00:11]} 9. b3 {[%emt 0:00:13]} Qe6 {[%emt 0:00:58]} 10. Nc3 {[%emt 0:00:43]} a5 {[%emt 0:00:34]} 11. g3 {[%emt 0:01:55]} a4 {[%emt 0:00:33]} 12. Nxa4 {[%emt 0:04:26]} Nxa4 {[%emt 0:00:18]} 13. bxa4 {[%emt 0:00:10]} Bb4+ {[%emt 0:01:18]} 14. Kd1 {[%emt 0:02:01]} O-O {[%emt 0:01:32]} 15. f4 {[%emt 0:01:58]} d6 {[%emt 0:01:40]} 16. Bg2 {[%emt 0:02:34]} dxe5 {[%emt 0:00:33]} 17. fxe5 {[%emt 0:02:35]} Rd8+ {[%emt 0:03:40]} 18. Kc2 {[%emt 0:00:08]} Qg6+ {[%emt 0:00:24]} 19. Kb3 {[%emt 0:01:31]} Rd3+ {[%emt 0:00:39]} 20. Kxb4 {[%emt 0:00:19]} c5+ {[%emt 0:00:11]} 0-1

[Event "LJ Slovak Open 2022"]
[Site "Liptovsky Jan"]
[Date "2022.06.24"]
[Round "3.20"]
[White "Sekova, Olivia"]
[Black "Stric, Dusan"]
[Result "1/2-1/2"]
[ECO "B06"]
[WhiteElo "1708"]
[BlackElo "2021"]
[Annotator "TA"]
[PlyCount "133"]
[EventDate "2022.06.23"]
[EventType "swiss"]
[EventCountry "SVK"]
[SourceTitle "playchess.com"]
[Source "ChessBase"]
[SourceQuality "1"]
[TimeControl "3600+30"]

{[%evp 9,133,30,64,62,89,96,94,99,112,110,100,91,91,91,92,88,89,87,129,117,114,79,121,120,112,73,78,89,132,70,134,133,140,133,143,149,153,143,162,141,181,175,196,133,123,83,163,111,123,84,90,77,69,47,91,84,79,84,84,-15,-18,-15,0,0,0,0,15,15,42,42,42,42,42,27,41,8,8,8,8,0,0,0,0,0,0,0,0,0,0,-8,0,0,0,0,0,0,0,0,0,-8,0,0,0,0,0,-8,0,0,0,0,0,0,0,0,0,-8,0,0,0,0,0,0,0,0,0,0]} 1. e4 {[%emt 0:00:08]} g6 {[%emt 0:00:34]} 2. d4 {[%emt 0:00:12]} Bg7 {[%emt 0:00:28]} 3. Nc3 {[%emt 0:00:45]} d6 {[%emt 0:00:04]} 4. Be3 {[%emt 0:00:16]} Nd7 {[%emt 0:00:13]} 5. Nge2 {[%emt 0:00:13]} e5 {[%emt 0:00:45]} 6. Qd2 {[%emt 0:00:49] B06: Modern Defence.} b6 {[%emt 0:02:38]} 7. O-O-O {[%emt 0:04:22] [#]} Bb7 $146 {[%emt 0:00:34]} ({Predecessor:} 7... Ne7 8. Bh6 O-O 9. h4 exd4 10. Nxd4 Nf6 11. f3 a6 12. h5 c5 13. Nde2 b5 14. Bxg7 Kxg7 {1-0 (33) Zagema,J (1861)-Alvarez Fernandez,J (1594) Pontevedra 2018}) 8. Kb1 {[%emt 0:05:44] White is better.} h5 {[%emt 0:13:28]} 9. f3 {[%emt 0:07:18]} a6 {[%emt 0:05:27]} 10. dxe5 {[%emt 0:07:40]} Nxe5 {[%emt 0:00:44]} 11. Nf4 {[%emt 0:01:40]} Ne7 {[%emt 0:06:21]} 12. Nfd5 {[%emt 0:02:30]} Nxd5 {[%emt 0:00:10]} 13. Nxd5 {[%emt 0:00:08]} O-O {[%emt 0:01:44] [#]} 14. Bg5 $1 {[%emt 0:04:14]} f6 {[%emt 0:01:25]} 15. Bh6 {[%emt 0:04:13] White is more active.} Qd7 {[%emt 0:04:44]} 16. Bxg7 {[%emt 0:02:46]} Kxg7 {[%emt 0:00:08]} 17. Qc3 {[%emt 0:03:32]} Rac8 {[%emt 0:05:52]} 18. Be2 {[%emt 0:04:41][%cal Og2g4]} Rf7 {[%emt 0:05:52]} 19. Nxf6 {[%emt 0:01:56]} Rxf6 {[%emt 0:04:02] [#]} (19... Kxf6 $14 20. f4 Qe7) 20. Qxe5 $1 $16 {[%emt 0:00:19][%mdl 576] Pin} Re8 {[%emt 0:00:09]} (20... Qc6 21. Qd4) 21. Qc3 {[%emt 0:01:05][%cal Oe4e5] Threatens to win with e5!} Qe7 {[%emt 0:01:26][%cal Od6d5] Prevents e5.} 22. Rhe1 {[%emt 0:01:13]} b5 {[%emt 0:00:38]} 23. Rd2 {[%emt 0:09:31]} Kh7 {[%emt 0:01:07]} 24. Red1 {[%emt 0:01:02]} Rf7 {[%emt 0:00:28]} 25. Qd4 {[%emt 0:02:32]} Qe5 {[%emt 0:01:10] [#]} 26. Qxe5 {[%emt 0:00:38]} (26. Qa7 $1 $18 {[%cal Ra7b7]} Bc6 27. Qxa6 (27. Rxd6 $2 Ra8 $19)) 26... Rxe5 {[%emt 0:00:02]} 27. c3 {[%emt 0:00:22]} Ree7 {[%emt 0:02:20]} (27... g5 $16) 28. Bd3 {[%emt 0:01:08]} (28. c4 $18) 28... Kg7 {[%emt 0:00:51]} 29. Bc2 {[%emt 0:00:08]} Rf6 {[%emt 0:01:20]} 30. Bb3 {[%emt 0:00:09]} g5 {[%emt 0:02:14]} 31. Bd5 {[%emt 0:00:20]} Bc8 {[%emt 0:00:05]} 32. Rf2 {[%emt 0:01:36]} Bd7 {[%emt 0:00:28]} 33. Re1 {[%emt 0:02:03]} a5 {[%emt 0:00:14]} 34. Kc2 {[%emt 0:00:14]} (34. Kc1 $16) 34... c6 $11 {[%emt 0:00:16]} 35. e5 $1 {[%emt 0:00:43]} ({Don't go for} 35. Bb3 $2 a4 36. Bxa4 bxa4 $19) 35... Rxe5 {[%emt 0:00:55]} 36. Rxe5 {[%emt 0:00:15]} dxe5 {[%emt 0:00:03][%mdl 4096] Endgame KRB-KRB} 37. Be4 {[%emt 0:00:14]} g4 {[%emt 0:04:16]} 38. Kd2 {[%emt 0:01:15]} gxf3 {[%emt 0:01:04]} 39. Rxf3 {[%emt 0:00:11]} Rxf3 {[%emt 0:00:47]} 40. Bxf3 {[%emt 0:00:06] KB-KB} Be8 {[%emt 0:00:03]} 41. Kd3 {[%emt 0:01:02]} Kf6 {[%emt 0:00:24]} 42. g4 {[%emt 0:00:42]} hxg4 {[%emt 0:01:58] The position is equal.} 43. Bxg4 {[%emt 0:00:06]} Kg5 {[%emt 0:00:06]} 44. Bf3 {[%emt 0:00:46]} Kf4 {[%emt 0:00:03]} 45. Be4 {[%emt 0:00:46]} c5 {[%emt 0:00:16] Hoping for ...c4+.} 46. Bd5 {[%emt 0:01:11]} Bg6+ {[%emt 0:01:03]} 47. Ke2 {[%emt 0:00:08]} e4 {[%emt 0:00:48]} 48. Bc6 {[%emt 0:00:35]} b4 {[%emt 0:00:45]} 49. cxb4 {[%emt 0:00:12]} cxb4 {[%emt 0:00:05]} 50. a3 {[%emt 0:00:25]} Bh5+ {[%emt 0:00:18]} 51. Ke1 {[%emt 0:00:25]} Ke3 {[%emt 0:01:12]} 52. h4 {[%emt 0:01:00]} Kd3 {[%emt 0:00:47] ...b3 is the strong threat.} 53. axb4 {[%emt 0:00:37]} axb4 {[%emt 0:00:08]} 54. b3 {[%emt 0:00:30]} e3 {[%emt 0:00:24]} 55. Bb5+ {[%emt 0:00:11]} Ke4 {[%emt 0:00:12]} 56. Be2 {[%emt 0:00:34]} Bf7 {[%emt 0:00:27]} 57. Bd1 {[%emt 0:00:13]} Kd3 {[%emt 0:00:44]} 58. h5 {[%emt 0:00:15]} Kc3 {[%emt 0:00:53]} 59. h6 {[%emt 0:00:10] White threatens h7 and mate.} Bg6 {[%emt 0:00:26]} 60. Bg4 {[%emt 0:01:08] And now Be6 would win.} Kxb3 {[%emt 0:00:17]} 61. Be6+ {[%emt 0:00:13]} Kc3 {[%emt 0:00:36]} 62. Ke2 {[%emt 0:00:08]} Kd4 {[%emt 0:00:35]} 63. Bg8 {[%emt 0:00:26]} Bd3+ {[%emt 0:00:36]} 64. Ke1 {[%emt 0:00:06]} Kc3 {[%emt 0:01:55]} 65. h7 {[%emt 0:00:23]} Bxh7 $1 {[%emt 0:00:24]} 66. Bxh7 {[%emt 0:00:01]} b3 {[%emt 0:00:13]} 67. Ke2 {[%emt 0:00:19] Black escapes into a draw.  Weighted Error Value: White=0.12 (very precise) /Black=0.11 (very precise)} 1/2-1/2

[Event "LJ Slovak Open 2022"]
[Site "Liptovsky Jan"]
[Date "2022.06.24"]
[Round "3.21"]
[White "Carnecka, Stella"]
[Black "Goga, Frantisek"]
[Result "1-0"]
[ECO "B92"]
[WhiteElo "1648"]
[BlackElo "1900"]
[Annotator "NA"]
[PlyCount "97"]
[EventDate "2022.06.23"]
[EventType "swiss"]
[EventCountry "SVK"]
[SourceTitle "playchess.com"]
[Source "ChessBase"]
[SourceQuality "1"]
[TimeControl "3600+30"]

1. e4 {[%emt 0:00:04]} c5 {[%emt 0:00:08]} 2. Nf3 {[%emt 0:00:06]} d6 {[%emt 0:00:11]} 3. d4 {[%emt 0:00:17]} cxd4 {[%emt 0:00:09]} 4. Nxd4 {[%emt 0:00:04]} Nf6 {[%emt 0:00:03]} 5. Nc3 {[%emt 0:00:55]} a6 {[%emt 0:00:25]} 6. Be2 {[%emt 0:01:02]} e5 {[%emt 0:00:21]} 7. Nf3 {[%emt 0:00:33]} h6 {[%emt 0:00:18]} 8. Be3 {[%emt 0:00:23]} Be7 {[%emt 0:01:35]} 9. O-O {[%emt 0:08:21]} O-O {[%emt 0:02:33]} 10. Nd5 {[%emt 0:01:11]} Nxd5 {[%emt 0:02:11]} 11. Qxd5 {[%emt 0:00:24]} Qc7 {[%emt 0:03:35]} 12. Qd2 {[%emt 0:00:18]} Nd7 {[%emt 0:06:51]} 13. h3 {[%emt 0:03:17]} b5 {[%emt 0:01:15]} 14. Nh2 {[%emt 0:00:07]} Nf6 {[%emt 0:00:30]} 15. Bd3 {[%emt 0:00:15]} Bb7 {[%emt 0:00:35]} 16. f3 {[%emt 0:06:26]} Rfd8 {[%emt 0:11:02]} 17. Qf2 {[%emt 0:03:05]} Qd7 {[%emt 0:01:38]} 18. Rad1 {[%emt 0:02:28]} Qe8 {[%emt 0:03:10]} 19. Ng4 {[%emt 0:02:43]} Nh5 {[%emt 0:05:24]} 20. c4 {[%emt 0:03:15]} Bc8 {[%emt 0:04:12]} 21. cxb5 {[%emt 0:01:42]} axb5 {[%emt 0:00:04]} 22. Bb6 {[%emt 0:00:20]} Rxa2 {[%emt 0:01:28]} 23. Bxd8 {[%emt 0:00:23]} Bxd8 {[%emt 0:00:03]} 24. Ra1 {[%emt 0:00:42]} Rxa1 {[%emt 0:00:48]} 25. Rxa1 {[%emt 0:00:06]} Qc6 {[%emt 0:00:23]} 26. Kh2 {[%emt 0:01:28]} Nf4 {[%emt 0:03:11]} 27. Qc2 {[%emt 0:00:34]} Qb7 {[%emt 0:00:58]} 28. Rc1 {[%emt 0:03:32]} Be6 {[%emt 0:04:42]} 29. g3 {[%emt 0:00:33]} Nxd3 {[%emt 0:04:26]} 30. Qxd3 {[%emt 0:01:03]} h5 {[%emt 0:00:07]} 31. Ne3 {[%emt 0:03:48]} Bg5 {[%emt 0:00:23]} 32. Re1 {[%emt 0:01:55]} Qb6 {[%emt 0:00:32]} 33. Ng2 {[%emt 0:00:21]} Bc4 {[%emt 0:00:40]} 34. Qa3 {[%emt 0:00:18]} Qf2 {[%emt 0:02:41]} 35. Qxd6 {[%emt 0:08:26]} Bf1 {[%emt 0:00:44]} 36. Qb8+ {[%emt 0:00:10]} Kh7 {[%emt 0:00:13]} 37. Rxf1 {[%emt 0:00:09]} Qxf1 {[%emt 0:00:26]} 38. Qxe5 {[%emt 0:00:04]} Kh6 {[%emt 0:03:22]} 39. f4 {[%emt 0:03:09]} Bf6 {[%emt 0:00:05]} 40. Qe8 {[%emt 0:00:10]} g6 {[%emt 0:03:43]} 41. e5 {[%emt 0:01:11]} Qe2 {[%emt 0:01:15]} 42. Qxf7 {[%emt 0:00:22]} Bg7 {[%emt 0:00:05]} 43. e6 {[%emt 0:03:31]} Qc4 {[%emt 0:02:46]} 44. f5 {[%emt 0:01:08]} gxf5 {[%emt 0:00:16]} 45. Qxf5 {[%emt 0:00:07]} Qc8 {[%emt 0:01:19]} 46. Qf4+ {[%emt 0:00:21]} Kh7 {[%emt 0:00:12]} 47. e7 {[%emt 0:00:38]} Kg8 {[%emt 0:00:49]} 48. Qe4 {[%emt 0:00:48]} Qe8 {[%emt 0:00:47]} 49. Qd5+ {[%emt 0:00:46]} 1-0

[Event "LJ Slovak Open 2022"]
[Site "Liptovsky Jan"]
[Date "2022.06.24"]
[Round "3.22"]
[White "Smusz, Kamil"]
[Black "Kaminsky, Ladislav"]
[Result "1-0"]
[ECO "D02"]
[WhiteElo "1881"]
[BlackElo "1615"]
[Annotator "NA RC"]
[PlyCount "77"]
[EventDate "2022.06.23"]
[EventType "swiss"]
[EventCountry "SVK"]
[SourceTitle "playchess.com"]
[Source "ChessBase"]
[SourceQuality "1"]
[TimeControl "3600+30"]

1. d4 {[%emt 0:00:04]} d5 {[%emt 0:00:07]} 2. Bf4 {[%emt 0:00:02]} Nf6 {[%emt 0:00:26]} 3. e3 {[%emt 0:00:01]} e6 {[%emt 0:00:19]} 4. Nd2 {[%emt 0:00:02]} c5 {[%emt 0:00:34]} 5. c3 {[%emt 0:00:02]} Nc6 {[%emt 0:00:27]} 6. Ngf3 {[%emt 0:00:48]} Bd6 {[%emt 0:00:15]} 7. Bg3 {[%emt 0:00:01]} Qc7 {[%emt 0:01:15]} 8. dxc5 {[%emt 0:00:42]} Bxg3 {[%emt 0:01:20]} 9. hxg3 {[%emt 0:00:17]} Ne7 {[%emt 0:02:10]} 10. b4 {[%emt 0:22:45]} b6 {[%emt 0:03:29]} 11. Nb3 {[%emt 0:13:42]} Ne4 {[%emt 0:04:01]} 12. Nfd2 {[%emt 0:02:33]} Nxg3 {[%emt 0:11:12]} 13. Bb5+ {[%emt 0:02:26]} Kf8 {[%emt 0:00:44]} 14. fxg3 {[%emt 0:11:50]} Qxg3+ {[%emt 0:00:16]} 15. Kf1 {[%emt 0:00:01]} Qxe3 {[%emt 0:01:22]} 16. Qf3 {[%emt 0:01:26]} Nf5 {[%emt 0:05:32]} 17. Qxe3 {[%emt 0:01:10]} Nxe3+ {[%emt 0:00:11]} 18. Kf2 {[%emt 0:00:29]} Ng4+ {[%emt 0:01:15]} 19. Kg3 {[%emt 0:00:13]} Ne5 {[%emt 0:02:10]} 20. a4 {[%emt 0:03:24]} bxc5 {[%emt 0:00:56]} 21. Nxc5 {[%emt 0:00:21]} a6 {[%emt 0:00:34]} 22. Be2 {[%emt 0:00:13]} Ke7 {[%emt 0:02:02]} 23. a5 {[%emt 0:05:06]} f5 {[%emt 0:00:35]} 24. Nf3 {[%emt 0:01:03]} Nd7 {[%emt 0:00:41]} 25. Nxd7 {[%emt 0:01:08]} Bxd7 {[%emt 0:00:06]} 26. Rhe1 {[%emt 0:00:57]} h6 {[%emt 0:01:55]} 27. Rac1 {[%emt 0:01:16]} g5 {[%emt 0:00:35]} 28. Ne5 {[%emt 0:00:38]} Be8 {[%emt 0:00:59]} 29. Nd3 {[%emt 0:01:23]} Bb5 {[%emt 0:01:50]} 30. Nc5 {[%emt 0:00:11]} e5 {[%emt 0:06:09]} 31. Bxb5 {[%emt 0:00:05]} e4 {[%emt 0:00:35]} 32. Bxa6 {[%emt 0:00:46]} f4+ {[%emt 0:00:49]} 33. Kf2 {[%emt 0:00:30]} e3+ {[%emt 0:00:17]} 34. Ke2 {[%emt 0:00:38]} h5 {[%emt 0:00:56]} 35. Bb7 {[%emt 0:00:11]} Rad8 {[%emt 0:00:42]} 36. Rcd1 {[%emt 0:00:08]} g4 {[%emt 0:01:07]} 37. Rf1 {[%emt 0:00:16]} Rdf8 {[%emt 0:01:06]} 38. Bxd5 {[%emt 0:00:10]} h4 {[%emt 0:00:48]} 39. Ne6 {[%emt 0:01:35]} 1-0

[Event "LJ Slovak Open 2022"]
[Site "Liptovsky Jan"]
[Date "2022.06.24"]
[Round "3.23"]
[White "Mikula, Maciej"]
[Black "Rak, Martin"]
[Result "1-0"]
[ECO "C00"]
[WhiteElo "1567"]
[BlackElo "1849"]
[Annotator "NA RC"]
[PlyCount "39"]
[EventDate "2022.06.23"]
[EventType "swiss"]
[EventCountry "SVK"]
[SourceTitle "playchess.com"]
[Source "ChessBase"]
[SourceQuality "1"]
[TimeControl "3600+30"]

1. e4 {[%emt 0:00:16]} e6 {[%emt 0:00:05]} 2. Nf3 {[%emt 0:00:25]} d5 {[%emt 0:00:06]} 3. e5 {[%emt 0:00:34]} c5 {[%emt 0:00:06]} 4. b4 {[%emt 0:00:27]} cxb4 {[%emt 0:00:01]} 5. a3 {[%emt 0:00:04]} bxa3 {[%emt 0:00:03]} 6. d4 {[%emt 0:00:06]} Nc6 {[%emt 0:00:42]} 7. Bd3 {[%emt 0:02:47]} Bd7 {[%emt 0:02:45]} 8. c3 {[%emt 0:01:28]} Rc8 {[%emt 0:01:10]} 9. Nxa3 {[%emt 0:02:41]} a6 {[%emt 0:00:50]} 10. Ng5 {[%emt 0:04:40]} g6 {[%emt 0:08:32]} 11. Qf3 {[%emt 0:02:28]} Qe7 {[%emt 0:02:25]} 12. h4 {[%emt 0:02:51]} h6 {[%emt 0:09:35]} 13. Nc4 {[%emt 0:02:12]} dxc4 {[%emt 0:05:03]} 14. Ba3 {[%emt 0:00:49]} hxg5 {[%emt 0:00:10]} 15. Bxe7 {[%emt 0:00:14]} Ncxe7 {[%emt 0:04:25]} 16. Be4 {[%emt 0:03:11]} Bc6 {[%emt 0:01:41]} 17. Bxc6+ {[%emt 0:00:38]} Rxc6 {[%emt 0:00:16]} 18. g3 {[%emt 0:01:09]} Nd5 {[%emt 0:06:56]} 19. Rb1 {[%emt 0:10:21]} b5 {[%emt 0:03:18]} 20. hxg5 {[%emt 0:01:38]} 1-0

[Event "LJ Slovak Open 2022"]
[Site "Liptovsky Jan"]
[Date "2022.06.24"]
[Round "3.24"]
[White "Janik, Marek Tobias"]
[Black "Marcek, Jan"]
[Result "1-0"]
[ECO "A18"]
[WhiteElo "1840"]
[BlackElo "1588"]
[Annotator "NA RC"]
[PlyCount "67"]
[EventDate "2022.06.23"]
[EventType "swiss"]
[EventCountry "SVK"]
[SourceTitle "playchess.com"]
[Source "ChessBase"]
[SourceQuality "1"]
[TimeControl "3600+30"]

1. c4 {[%emt 0:00:06]} e6 {[%emt 0:00:27]} 2. g3 {[%emt 0:00:18]} c6 {[%emt 0:00:19]} 3. Bg2 {[%emt 0:01:01]} Nf6 {[%emt 0:00:23]} 4. Nc3 {[%emt 0:00:28]} d6 {[%emt 0:00:27]} 5. e4 {[%emt 0:00:57]} Nbd7 {[%emt 0:00:20]} 6. Nge2 {[%emt 0:00:10]} Be7 {[%emt 0:00:22]} 7. d4 {[%emt 0:01:14]} h6 {[%emt 0:01:17]} 8. O-O {[%emt 0:00:24]} a6 {[%emt 0:01:19]} 9. f4 {[%emt 0:03:54]} c5 {[%emt 0:04:43]} 10. e5 {[%emt 0:07:16]} Nh7 {[%emt 0:06:32]} 11. Be3 {[%emt 0:08:24]} f5 {[%emt 0:05:25]} 12. g4 {[%emt 0:10:21]} O-O {[%emt 0:03:07]} 13. gxf5 {[%emt 0:03:08]} exf5 {[%emt 0:08:52]} 14. dxc5 {[%emt 0:07:42]} Nxc5 {[%emt 0:00:30]} 15. Bxc5 {[%emt 0:00:30]} dxc5 {[%emt 0:00:30]} 16. Nd5 {[%emt 0:00:30]} Rb8 {[%emt 0:00:30]} 17. Qb3 {[%emt 0:00:59]} b5 {[%emt 0:01:56]} 18. cxb5 {[%emt 0:00:19]} Kh8 {[%emt 0:00:30]} 19. a4 {[%emt 0:03:05]} Rg8 {[%emt 0:04:54]} 20. Rfd1 {[%emt 0:02:12]} Qe8 {[%emt 0:00:41]} 21. Nc7 {[%emt 0:01:15]} Qg6 {[%emt 0:01:07]} 22. Ng3 {[%emt 0:01:20]} h5 {[%emt 0:02:02]} 23. Qf3 {[%emt 0:05:09]} Qg4 {[%emt 0:07:13]} 24. Qxg4 {[%emt 0:03:53]} hxg4 {[%emt 0:00:20]} 25. bxa6 {[%emt 0:00:08]} c4 {[%emt 0:04:49]} 26. Kh1 {[%emt 0:08:47]} Bc5 {[%emt 0:14:55]} 27. Bd5 {[%emt 0:00:30]} Rf8 {[%emt 0:00:30]} 28. Bxc4 {[%emt 0:00:30]} Rxb2 {[%emt 0:00:30]} 29. Be6 {[%emt 0:00:30]} g5 {[%emt 0:00:30]} 30. Bxc8 {[%emt 0:00:30]} Rxc8 {[%emt 0:00:30]} 31. Ne6 {[%emt 0:00:30]} Bb6 {[%emt 0:00:30]} 32. a5 {[%emt 0:00:30]} Rcc2 {[%emt 0:00:30]} 33. axb6 {[%emt 0:00:30]} Rxh2+ {[%emt 0:00:30]} 34. Kg1 {[%emt 0:00:30]} 1-0

[Event "LJ Slovak Open 2022"]
[Site "Liptovsky Jan"]
[Date "2022.06.24"]
[Round "3.25"]
[White "Straka, Simon"]
[Black "Mydliar, Jan"]
[Result "1/2-1/2"]
[ECO "D88"]
[WhiteElo "1523"]
[BlackElo "1885"]
[Annotator "NA RC"]
[PlyCount "90"]
[EventDate "2022.06.23"]
[EventType "swiss"]
[EventCountry "SVK"]
[SourceTitle "playchess.com"]
[Source "ChessBase"]
[SourceQuality "1"]
[TimeControl "3600+30"]

1. d4 {[%emt 0:00:04]} Nf6 {[%emt 0:00:08]} 2. c4 {[%emt 0:00:20]} g6 {[%emt 0:00:07]} 3. Nc3 {[%emt 0:00:15]} d5 {[%emt 0:00:14]} 4. cxd5 {[%emt 0:00:24]} Nxd5 {[%emt 0:00:09]} 5. e4 {[%emt 0:00:14]} Nxc3 {[%emt 0:00:11]} 6. bxc3 {[%emt 0:00:13]} Bg7 {[%emt 0:00:11]} 7. Bc4 {[%emt 0:00:27]} O-O {[%emt 0:00:22]} 8. Be3 {[%emt 0:00:55]} c5 {[%emt 0:00:35]} 9. Ne2 {[%emt 0:02:38]} Qa5 {[%emt 0:01:59]} 10. O-O {[%emt 0:01:16]} cxd4 {[%emt 0:05:45]} 11. cxd4 {[%emt 0:00:34]} Nc6 {[%emt 0:01:48]} 12. Rc1 {[%emt 0:01:07]} e6 {[%emt 0:06:27]} 13. Qb3 {[%emt 0:06:48]} Qb4 {[%emt 0:03:46]} 14. d5 {[%emt 0:14:02]} Qxb3 {[%emt 0:00:59]} 15. Bxb3 {[%emt 0:00:20]} exd5 {[%emt 0:00:24]} 16. exd5 {[%emt 0:00:58]} Na5 {[%emt 0:02:49]} 17. Ba4 {[%emt 0:01:03]} b6 {[%emt 0:02:51]} 18. Nd4 {[%emt 0:04:49]} Ba6 {[%emt 0:04:50]} 19. Rfd1 {[%emt 0:03:33]} Nc4 {[%emt 0:14:04]} 20. Bb3 {[%emt 0:03:48]} Nxe3 {[%emt 0:01:03]} 21. fxe3 {[%emt 0:00:10]} Rfe8 {[%emt 0:01:44]} 22. Kf2 {[%emt 0:05:46]} Be5 {[%emt 0:01:44]} 23. g3 {[%emt 0:02:11]} h5 {[%emt 0:03:51]} 24. Ba4 {[%emt 0:01:30]} Rf8 {[%emt 0:05:41]} 25. Nc6 {[%emt 0:00:38]} Bd6 {[%emt 0:00:10]} 26. e4 {[%emt 0:02:53]} f6 {[%emt 0:00:18]} 27. Nd4 {[%emt 0:01:18]} Rac8 {[%emt 0:01:56]} 28. Bc6 {[%emt 0:01:51]} Rf7 {[%emt 0:01:54]} 29. Kg2 {[%emt 0:01:53]} Rh7 {[%emt 0:01:11]} 30. h3 {[%emt 0:03:18]} Re7 {[%emt 0:01:51]} 31. Ne6 {[%emt 0:00:42]} Rb8 {[%emt 0:00:39]} 32. Rc3 {[%emt 0:00:54]} Bc8 {[%emt 0:00:25]} 33. Rdc1 {[%emt 0:02:36]} Bxe6 {[%emt 0:01:07]} 34. dxe6 {[%emt 0:00:09]} Kg7 {[%emt 0:00:37]} 35. Bd7 {[%emt 0:00:29]} Bc5 {[%emt 0:00:14]} 36. Rb1 {[%emt 0:00:52]} Rf8 {[%emt 0:00:43]} 37. a4 {[%emt 0:01:12]} f5 {[%emt 0:01:05]} 38. exf5 {[%emt 0:00:32]} Rxf5 {[%emt 0:00:08]} 39. Rf3 {[%emt 0:01:22]} Rxf3 {[%emt 0:01:47]} 40. Kxf3 {[%emt 0:00:05]} Kf6 {[%emt 0:00:15]} 41. Ke4 {[%emt 0:00:25]} Rg7 {[%emt 0:01:03]} 42. Rf1+ {[%emt 0:00:25]} Ke7 {[%emt 0:00:07]} 43. Kd5 {[%emt 0:00:51]} a5 {[%emt 0:00:24]} 44. Rf3 {[%emt 0:01:09]} Rh7 {[%emt 0:00:29]} 45. Ke5 {[%emt 0:01:49]} Bd6+ {[%emt 0:00:19]} 1/2-1/2

[Event "LJ Slovak Open 2022"]
[Site "Liptovsky Jan"]
[Date "2022.06.24"]
[Round "3.26"]
[White "Gay, Lukas"]
[Black "Harvan, Tomas"]
[Result "0-1"]
[ECO "B10"]
[WhiteElo "1480"]
[BlackElo "1853"]
[Annotator "NA RC"]
[PlyCount "80"]
[EventDate "2022.06.23"]
[EventType "swiss"]
[EventCountry "SVK"]
[SourceTitle "playchess.com"]
[Source "ChessBase"]
[SourceQuality "1"]
[TimeControl "3600+30"]

1. e4 {[%emt 0:00:07]} c6 {[%emt 0:01:49]} 2. c4 {[%emt 0:00:29]} d5 {[%emt 0:00:09]} 3. exd5 {[%emt 0:00:37]} cxd5 {[%emt 0:00:05]} 4. cxd5 {[%emt 0:00:05]} Nf6 {[%emt 0:00:11]} 5. Nc3 {[%emt 0:01:08]} Nxd5 {[%emt 0:00:52]} 6. Nf3 {[%emt 0:00:57]} Nc6 {[%emt 0:01:44]} 7. Bb5 {[%emt 0:01:18]} e6 {[%emt 0:12:10]} 8. O-O {[%emt 0:02:20]} Be7 {[%emt 0:00:57]} 9. Qc2 {[%emt 0:00:55]} O-O {[%emt 0:04:21]} 10. Nxd5 {[%emt 0:02:27]} Qxd5 {[%emt 0:01:13]} 11. Bc4 {[%emt 0:02:34]} Qh5 {[%emt 0:02:08]} 12. b3 {[%emt 0:01:19]} Nb4 {[%emt 0:03:09]} 13. Qb1 {[%emt 0:01:48]} b5 {[%emt 0:07:20]} 14. Be2 {[%emt 0:00:37]} Bb7 {[%emt 0:01:12]} 15. Bb2 {[%emt 0:00:53]} Rac8 {[%emt 0:03:28]} 16. a3 {[%emt 0:02:20]} Bd6 {[%emt 0:05:35]} 17. h3 {[%emt 0:02:17]} Na6 {[%emt 0:05:50]} 18. Qd3 {[%emt 0:01:22]} Rfd8 {[%emt 0:01:52]} 19. Qxb5 {[%emt 0:02:07]} Nc5 {[%emt 0:02:02]} 20. d4 {[%emt 0:01:50]} Ba6 {[%emt 0:00:44]} 21. Qa5 {[%emt 0:03:31]} Bxe2 {[%emt 0:00:23]} 22. dxc5 {[%emt 0:00:10]} Bxf1 {[%emt 0:01:20]} 23. Qc3 {[%emt 0:00:19]} Bf8 {[%emt 0:01:19]} 24. Kxf1 {[%emt 0:00:11]} Rxc5 {[%emt 0:00:31]} 25. Qe3 {[%emt 0:00:34]} Rc2 {[%emt 0:03:52]} 26. Bd4 {[%emt 0:00:32]} Bc5 {[%emt 0:04:45]} 27. Rd1 {[%emt 0:01:03]} Bxd4 {[%emt 0:01:15]} 28. Rxd4 {[%emt 0:00:07]} Rxd4 {[%emt 0:00:33]} 29. Qxd4 {[%emt 0:00:04]} Qb5+ {[%emt 0:01:18]} 30. Kg1 {[%emt 0:00:18]} Qb6 {[%emt 0:00:42]} 31. Qh4 {[%emt 0:00:23]} h6 {[%emt 0:00:54]} 32. b4 {[%emt 0:01:49]} Qc7 {[%emt 0:00:27]} 33. g3 {[%emt 0:00:26]} Rc4 {[%emt 0:01:00]} 34. Qh5 {[%emt 0:00:46]} Rc1+ {[%emt 0:00:19]} 35. Kg2 {[%emt 0:00:07]} Qc6 {[%emt 0:00:49]} 36. Qa5 {[%emt 0:01:17]} Rc3 {[%emt 0:00:30]} 37. Qd8+ {[%emt 0:00:31]} Kh7 {[%emt 0:00:07]} 38. Qd1 {[%emt 0:00:05]} Qe4 {[%emt 0:00:45]} 39. h4 {[%emt 0:00:36]} Rxa3 {[%emt 0:01:06]} 40. b5 {[%emt 0:00:16]} Rd3 {[%emt 0:00:10]} 0-1